bitfinex/quotes_SOLUSD_20260223
["timestamp","ask_amount","ask_price","bid_price","bid_amount"]
[1771833647896,1.40062159,79.477,79.453,50.8474269]
[1771833648615,1.40062159,79.477,79.453,52.20431976]
[1771833649137,12.58209819,79.478,79.453,52.20431976]
[1771833649138,1.40062159,79.486,79.455,1.35689286]
[1771833650023,1.40062159,79.492,79.461,1.35689286]
[1771833650230,1.40062159,79.492,79.463,1.35689286]
[1771833651227,12.579724,79.493,79.471,1.35689286]
[1771833651228,12.18236004,79.493,79.471,1.35689286]
[1771833652296,4.87382899,79.48,79.453,1.35689286]
[1771833652500,4.87382899,79.49,79.453,1.35689286]
[1771833653101,1.40062159,79.487,79.453,1.35689286]
[1771833655126,1.40062159,79.479,79.453,1.35689286]
[1771833657922,12.58209819,79.478,79.453,1.35689286]
[1771833658129,13.98184148,79.484,79.455,1.35689286]
[1771833658628,13.98184148,79.484,79.457,1.35689286]
[1771833659008,1.40062159,79.483,79.457,1.35689286]
[1771833659411,1.40062159,79.479,79.457,1.35689286]
[1771833660215,1.40062159,79.477,79.457,1.35689286]
[1771833660420,1.40062159,79.477,79.456,50.8474269]
[1771833660916,1.40062159,79.477,79.456,52.20431976]
[1771833661120,1.40062159,79.477,79.457,1.35689286]
[1771833661526,1.40062159,79.485,79.461,1.35689286]
[1771833662133,12.5807562,79.487,79.461,1.35689286]
[1771833663434,1.40062159,79.492,79.461,1.35689286]
[1771833664015,31.44863631,79.495,79.456,50.8474269]
[1771833664016,1.40062159,79.469,79.456,50.8474269]
[1771833664217,1.40062159,79.469,79.457,50.8474269]
[1771833664425,1.40062159,79.475,79.457,50.8474269]
[1771833664736,1.40062159,79.475,79.457,52.20431976]
[1771833665229,4.87382899,79.48,79.432,1.35689286]
[1771833665230,1.40062159,79.467,79.432,1.35689286]
[1771833665434,1.40062159,79.467,79.411,62.0]
[1771833665435,1.40062159,79.449,79.426,1.35689286]
[1771833665840,1.40062159,79.439,79.413,1.35689286]
[1771833666130,12.58368148,79.468,79.431,1.35689286]
[1771833666332,6.27445058,79.45,79.431,1.35689286]
[1771833666525,1.40062159,79.451,79.431,1.35689286]
[1771833666729,4.87382899,79.46,79.431,1.35689286]
[1771833666730,1.40062159,79.459,79.431,1.35689286]
[1771833666939,4.87382899,79.46,79.431,1.35689286]
[1771833667647,4.87382899,79.48,79.45,4.87382899]
[1771833667822,4.87382899,79.48,79.451,1.35689286]
[1771833668137,1.40062159,79.479,79.451,1.35689286]
[1771833668331,1.40062159,79.489,79.451,1.35689286]
[1771833669218,4.87382899,79.5,79.461,1.35689286]
[1771833669417,1.40062159,79.499,79.461,1.35689286]
[1771833670037,13.97955439,79.498,79.463,1.35689286]
[1771833670532,1.40062159,79.497,79.463,1.35689286]
[1771833670842,1.40062159,79.489,79.463,1.35689286]
[1771833671532,4.87382899,79.49,79.463,1.35689286]
[1771833671935,1.40062159,79.489,79.463,1.35689286]
[1771833672138,12.58051529,79.488,79.463,1.35689286]
[1771833672635,12.58051529,79.488,79.464,12.5843149]
[1771833672840,12.57988051,79.493,79.465,1.35689286]
[1771833673143,1.40062159,79.489,79.465,1.35689286]
[1771833673945,1.40062159,79.489,79.455,12.5855854]
[1771833673946,1.40062159,79.489,79.456,1.35689286]
[1771833674321,12.5804486,79.489,79.461,1.35689286]
[1771833675245,1.40062159,79.494,79.461,1.35689286]
[1771833675946,1.40062159,79.494,79.462,62.0]
[1771833676142,4.87150754,79.49,79.463,1.35689286]
[1771833677031,1.40062159,79.494,79.464,12.5843149]
[1771833677233,4.87150754,79.49,79.465,1.35689286]
[1771833677632,1.40062159,79.494,79.465,1.35689286]
[1771833678547,1.46840633,79.492,79.465,1.35689286]
[1771833680348,12.57913679,79.497,79.471,1.47009743]
[1771833680546,14.04754312,79.497,79.473,1.47009743]
[1771833680741,1.46840633,79.496,79.473,1.47009743]
[1771833682451,1.46840633,79.494,79.473,1.47009743]
[1771833682856,1.46840633,79.494,79.472,62.0]
[1771833683033,1.46840633,79.479,79.445,1.47009743]
[1771833684657,1.46840633,79.477,79.447,1.47009743]
[1771833685762,1.46840633,79.475,79.432,1.47009743]
[1771833685939,1.46840633,79.459,79.432,1.47009743]
[1771833687964,1.46840633,79.457,79.432,1.47009743]
[1771833688161,12.58526517,79.458,79.417,1.47009743]
[1771833688162,1.46840633,79.449,79.417,1.47009743]
[1771833688360,1.46840633,79.439,79.417,1.47009743]
[1771833690365,14.05684007,79.438,79.417,1.47009743]
[1771833690658,1.46840633,79.429,79.41,0.2]
[1771833691159,1.46840633,79.419,79.4,0.2]
[1771833691357,4.87150754,79.42,79.4,0.2]
[1771833691562,1.46840633,79.417,79.4,0.2]
[1771833692459,14.06032735,79.416,79.4,0.2]
[1771833692867,1.46840633,79.415,79.4,0.2]
[1771833693163,12.5913648,79.42,79.4,0.2]
[1771833694381,12.5913648,79.42,79.4,1.67009743]
[1771833694543,12.58986012,79.429,79.401,12.59429981]
[1771833694751,12.58875498,79.436,79.411,1.47009743]
[1771833695044,12.58810492,79.441,79.411,1.47009743]
[1771833695465,14.05651125,79.441,79.411,1.47009743]
[1771833696871,1.46840633,79.441,79.413,1.47009743]
[1771833697571,12.58795932,79.441,79.413,1.47009743]
[1771833698677,13.06566998,79.44,79.414,63.47009743]
[1771833698870,1.46840633,79.437,79.414,63.47009743]
[1771833699194,12.58843374,79.438,79.4,0.2]
[1771833699195,1.46840633,79.429,79.4,0.2]
[1771833699471,1.46840633,79.429,79.35,0.2]
[1771833699472,1.46840633,79.406,79.333,12.60509497]
[1771833699665,2.40837169,79.414,79.294,100.8898641]
[1771833699666,13.06566998,79.35,79.332,12.85036271]
[1771833699875,1.46840633,79.393,79.332,12.85036271]
[1771833700178,13.06566998,79.37,79.332,44.36349738]
[1771833700372,1.46840633,79.369,79.332,44.36349738]
[1771833700755,1.46840633,79.382,79.34,13.06566998]
[1771833701064,1.46840633,79.378,79.341,12.603824]
[1771833701377,1.46840633,79.369,79.334,1.47009743]
[1771833701669,13.06566998,79.38,79.341,1.47009743]
[1771833701970,6.586,79.414,79.341,1.47009743]
[1771833701971,1.46840633,79.387,79.341,1.47009743]
[1771833702378,13.06566998,79.38,79.341,1.47009743]
[1771833702871,13.06566998,79.38,79.332,0.2451515]
[1771833702872,13.06566998,79.37,79.336,1.47009743]
[1771833703074,1.46840633,79.379,79.336,1.47009743]
[1771833703872,1.46840633,79.359,79.336,1.47009743]
[1771833704175,13.06566998,79.35,79.332,0.2451515]
[1771833704482,1.46840633,79.339,79.313,12.60813341]
[1771833704972,1.46840633,79.337,79.312,1.47009743]
[1771833705276,1.46840633,79.329,79.303,1.47009743]
[1771833705481,12.60430058,79.338,79.282,1.47009743]
[1771833705482,1.46840633,79.319,79.282,1.47009743]
[1771833708096,1.46840633,79.319,79.281,44.14676908]
[1771833708097,1.46840633,79.319,79.291,1.56398298]
[1771833708381,1.45970223,79.309,79.28,0.2]
[1771833708582,1.45970223,79.309,79.28,14.37741064]
[1771833708766,1.45970223,79.319,79.281,1.56398298]
[1771833709972,13.06566998,79.31,79.281,1.56398298]
[1771833710179,1.45970223,79.311,79.283,1.56398298]
[1771833711975,1.45970223,79.32,79.29,13.06566998]
[1771833712175,14.52537221,79.33,79.293,1.56398298]
[1771833712572,1.45970223,79.329,79.293,1.56398298]
[1771833712957,1.45970223,79.339,79.301,1.56398298]
[1771833713164,1.45970223,79.329,79.301,1.56398298]
[1771833714781,1.45970223,79.329,79.303,1.56398298]
[1771833715757,1.45970223,79.339,79.303,1.56398298]
[1771833716768,1.45970223,79.339,79.305,1.56398298]
[1771833716973,13.06566998,79.35,79.311,1.56398298]
[1771833716974,1.45970223,79.346,79.311,1.56398298]
[1771833718463,1.45970223,79.339,79.311,1.56398298]
[1771833718979,1.45970223,79.339,79.304,12.60970442]
[1771833718980,1.45970223,79.339,79.313,1.56398298]
[1771833719378,1.45970223,79.349,79.313,1.56398298]
[1771833720989,1.45970223,79.349,79.321,1.56398298]
[1771833721282,1.45970223,79.357,79.321,1.56398298]
[1771833721787,1.45970223,79.39,79.341,1.56398298]
[1771833722094,1.45970223,79.408,79.371,1.56398298]
[1771833722271,1.45970223,79.399,79.361,1.56398298]
[1771833722587,1.45970223,79.409,79.381,1.56398298]
[1771833722972,1.45970223,79.409,79.383,1.56398298]
[1771833723287,48.78765167,79.439,79.383,1.56398298]
[1771833723288,1.45970223,79.419,79.383,1.56398298]
[1771833724267,13.06566998,79.41,79.383,1.56398298]
[1771833724781,1.45970223,79.428,79.39,13.06566998]
[1771833724983,1.45970223,79.428,79.393,1.56398298]
[1771833726293,13.06566998,79.42,79.393,1.56398298]
[1771833726868,1.45970223,79.428,79.393,1.56398298]
[1771833727586,1.45970223,79.428,79.395,1.56398298]
[1771833728877,13.06566998,79.42,79.396,62.0]
[1771833729194,13.06566998,79.43,79.401,1.56398298]
[1771833729390,13.06566998,79.43,79.403,1.56398298]
[1771833729571,1.45970223,79.436,79.405,1.56398298]
[1771833729777,13.06566998,79.42,79.392,1.56398298]
[1771833730293,1.45970223,79.428,79.393,1.56398298]
[1771833730487,13.06566998,79.42,79.393,1.56398298]
[1771833730685,1.45970223,79.428,79.393,1.56398298]
[1771833731191,13.06566998,79.42,79.393,1.56398298]
[1771833731575,13.06566998,79.41,79.388,1.56398298]
[1771833731790,1.45970223,79.399,79.382,12.59731425]
[1771833732299,13.06566998,79.4,79.383,1.56398298]
[1771833732796,13.06566998,79.41,79.383,1.56398298]
[1771833733975,13.06566998,79.41,79.385,1.56398298]
[1771833735282,13.07672662,79.41,79.385,1.56398298]
[1771833735794,1.45970223,79.399,79.373,12.59874264]
[1771833736898,1.45970223,79.399,79.373,44.09559925]
[1771833737078,1.45970223,79.399,79.374,1.56398298]
[1771833737277,13.07672662,79.41,79.381,1.56398298]
[1771833737481,1.45970223,79.423,79.401,1.48941623]
[1771833737682,14.64055636,79.43,79.401,1.48941623]
[1771833737886,1.56382974,79.43,79.401,1.48941623]
[1771833738194,1.56382974,79.43,79.403,1.57385077]
[1771833738978,1.56382974,79.43,79.41,13.07672662]
[1771833739174,1.58106909,79.449,79.421,1.57385077]
[1771833739388,1.58106909,79.439,79.411,12.59271385]
[1771833740093,1.58106909,79.429,79.4,13.07672662]
[1771833741290,1.58106909,79.419,79.394,12.59541023]
[1771833741893,13.07672662,79.41,79.394,12.59541023]
[1771833742482,13.07672662,79.41,79.39,12.59604484]
[1771833742879,14.65779571,79.41,79.39,12.59604484]
[1771833743103,1.58106909,79.409,79.385,12.59679029]
[1771833743792,13.07672662,79.4,79.385,12.59679029]
[1771833744883,1.58106909,79.409,79.385,12.59679029]
[1771833745884,1.58106909,79.409,79.385,14.17064106]
[1771833746581,1.58106909,79.409,79.386,1.57385077]
[1771833747313,1.58106909,79.417,79.386,1.57385077]
[1771833747504,1.58106909,79.417,79.388,1.57385077]
[1771833748496,13.07672662,79.43,79.393,1.57385077]
[1771833748703,13.07672662,79.43,79.401,1.51684044]
[1771833749086,14.65779571,79.43,79.401,1.51684044]
[1771833750183,1.58106909,79.43,79.401,1.51684044]
[1771833750391,14.65779571,79.43,79.401,1.51684044]
[1771833750813,1.58106909,79.447,79.402,62.0]
[1771833750996,1.58106909,79.459,79.431,1.57385077]
[1771833751400,1.58106909,79.468,79.431,1.57385077]
[1771833751708,13.07672662,79.46,79.431,1.57385077]
[1771833752495,13.07672662,79.46,79.433,1.57385077]
[1771833752909,12.58244848,79.476,79.441,1.57385077]
[1771833752910,13.07672662,79.47,79.441,1.57385077]
[1771833754812,13.07672662,79.46,79.442,12.5877999]
[1771833755317,1.58106909,79.469,79.443,1.57385077]
[1771833757120,1.58106909,79.459,79.439,12.58821831]
[1771833757313,1.58106909,79.459,79.439,14.16206908]
[1771833757613,1.58106909,79.466,79.439,12.58821831]
[1771833757811,1.58106909,79.466,79.44,1.57385077]
[1771833759719,1.58106909,79.466,79.442,1.57385077]
[1771833760811,13.07672662,79.46,79.443,12.58764145]
[1771833761313,1.58106909,79.449,79.432,12.58938463]
[1771833761517,13.07672662,79.46,79.433,1.57385077]
[1771833762417,14.65779571,79.46,79.433,1.57385077]
[1771833763015,1.58106909,79.459,79.434,12.58906765]
[1771833763199,1.58106909,79.459,79.435,1.57385077]
[1771833763401,1.58106909,79.449,79.426,1.57385077]
[1771833763700,31.45820047,79.471,79.423,12.59081122]
[1771833763701,13.07672662,79.44,79.423,12.59081122]
[1771833766010,13.07672662,79.43,79.413,12.59226156]
[1771833766215,13.07672662,79.43,79.414,1.57385077]
[1771833766419,13.07672662,79.44,79.414,1.57385077]
[1771833766811,14.65779571,79.44,79.414,1.57385077]
[1771833767000,1.58106909,79.439,79.414,1.57385077]
[1771833767315,1.58106909,79.432,79.413,12.59226156]
[1771833767524,1.58106909,79.439,79.414,1.57385077]
[1771833767821,1.48491646,79.419,79.393,1.49961764]
[1771833768027,1.48491646,79.399,79.372,1.49961764]
[1771833768614,1.48491646,79.407,79.372,1.49961764]
[1771833769018,1.48491646,79.407,79.381,1.49961764]
[1771833769519,1.48491646,79.407,79.382,12.59731425]
[1771833769718,1.48491646,79.407,79.383,1.49961764]
[1771833771426,13.07672662,79.42,79.391,1.49961764]
[1771833771723,13.07672662,79.42,79.382,44.09059988]
[1771833771724,1.48491646,79.419,79.393,1.49961764]
[1771833772621,1.48491646,79.419,79.392,12.59572752]
[1771833772825,1.48491646,79.409,79.392,12.59572752]
[1771833773113,1.48491646,79.416,79.393,1.49961764]
[1771833773298,13.07672662,79.41,79.393,1.49961764]
[1771833773499,13.07672662,79.44,79.363,50.400992]
[1771833773500,13.07672662,79.42,79.395,1.49961764]
[1771833773700,1.48491646,79.419,79.395,1.49961764]
[1771833774624,13.07672662,79.42,79.396,12.59509295]
[1771833774828,62.69898034,79.481,79.396,12.59509295]
[1771833774829,1.48491646,79.426,79.397,1.49961764]
[1771833775004,1.48491646,79.426,79.399,1.49961764]
[1771833775316,1.48491646,79.426,79.401,1.49961764]
[1771833777117,13.07672662,79.43,79.403,1.49961764]
[1771833777321,1.48491646,79.433,79.403,1.49961764]
[1771833777624,13.07672662,79.43,79.403,1.49961764]
[1771833777823,14.56164308,79.43,79.403,1.49961764]
[1771833778019,1.48491646,79.429,79.403,1.49961764]
[1771833779221,1.48491646,79.429,79.404,14.09344162]
[1771833779614,1.48491646,79.429,79.405,1.49961764]
[1771833781127,1.48491646,79.419,79.398,12.59468831]
[1771833781414,4.87984943,79.44,79.383,1.49961764]
[1771833781415,1.48491646,79.409,79.383,1.49961764]
[1771833781626,1.48491646,79.409,79.384,1.49961764]
[1771833782224,4.87984943,79.44,79.384,12.59699687]
[1771833782225,4.87984943,79.4,79.384,12.59699687]
[1771833782518,1.48491646,79.408,79.385,1.49961764]
[1771833783236,14.55948467,79.42,79.385,1.49961764]
[1771833783412,1.48491646,79.419,79.387,1.49961764]
[1771833783609,13.07456821,79.4,79.386,44.08837829]
[1771833783926,1.48491646,79.403,79.386,44.08837829]
[1771833784127,13.07456821,79.41,79.386,45.58799593]
[1771833784310,13.07456821,79.41,79.387,1.49961764]
[1771833785724,12.58890917,79.435,79.389,1.49961764]
[1771833785918,13.07456821,79.41,79.389,1.49961764]
[1771833788934,1.48491646,79.399,79.373,12.59874264]
[1771833789110,14.55948467,79.39,79.373,12.59874264]
[1771833789623,1.48491646,79.389,79.373,12.59874264]
[1771833790431,1.48491646,79.389,79.35,13.07456821]
[1771833790432,1.48491646,79.376,79.311,1.49961764]
[1771833790636,13.07456821,79.33,79.311,1.49961764]
[1771833790932,13.07456821,79.35,79.321,1.49961764]
[1771833792628,14.55948467,79.36,79.321,1.49961764]
[1771833792831,1.48491646,79.365,79.323,1.49961764]
[1771833793526,13.07456821,79.36,79.323,1.49961764]
[1771833793722,13.07456821,79.37,79.341,1.49961764]
[1771833793927,1.48491646,79.381,79.341,1.49961764]
[1771833794136,13.07456821,79.37,79.341,1.49961764]
[1771833795321,13.0897587,79.37,79.343,1.49961764]
[1771833796336,1.48491646,79.375,79.345,1.49961764]
[1771833796523,13.0897587,79.36,79.345,1.49961764]
[1771833797132,13.0897587,79.36,79.31,50.63485102]
[1771833797133,13.0897587,79.35,79.328,1.49961764]
[1771833797316,13.0897587,79.36,79.331,1.49961764]
[1771833798532,13.0897587,79.36,79.333,1.56021712]
[1771833800527,13.0897587,79.36,79.334,12.60493609]
[1771833800735,13.0897587,79.35,79.335,1.56021712]
[1771833800923,13.0897587,79.36,79.335,1.56021712]
[1771833802037,13.0897587,79.36,79.334,74.60493609]
[1771833802038,13.0897587,79.36,79.341,1.56021712]
[1771833806644,1.61545327,79.392,79.342,1.56021712]
[1771833806940,1.61545327,79.392,79.341,44.11334512]
[1771833806941,13.0897587,79.36,79.343,63.56021712]
[1771833807124,13.0897587,79.36,79.344,62.0]
[1771833807317,13.0897587,79.37,79.345,1.56021712]
[1771833808539,13.0897587,79.37,79.346,12.60302976]
[1771833808835,13.0897587,79.37,79.347,1.56021712]
[1771833809539,13.0897587,79.37,79.33,13.0897587]
[1771833809540,13.0897587,79.36,79.321,1.66326867]
[1771833809725,6.58988091,79.386,79.351,1.66326867]
[1771833809916,13.0897587,79.39,79.361,1.66326867]
[1771833810319,13.0897587,79.39,79.297,14.74307905]
[1771833810320,1.61545327,79.366,79.28,13.2897587]
[1771833810513,3.69383402,79.367,79.281,12.61336259]
[1771833810514,14.22293202,79.318,79.281,12.61336259]
[1771833810736,13.0897587,79.31,79.281,12.61336259]
[1771833810936,14.22293202,79.318,79.28,0.2]
[1771833810937,13.0897587,79.3,79.28,0.2]
[1771833811319,1.61545327,79.289,79.222,6.58057289]
[1771833811616,13.0897587,79.27,79.23,13.0897587]
[1771833811823,17.88011682,79.301,79.26,13.0897587]
[1771833812023,1.61545327,79.299,79.26,13.0897587]
[1771833812328,1.61545327,79.299,79.261,1.56021712]
[1771833812530,1.61545327,79.297,79.262,14.17660328]
[1771833813228,1.61545327,79.297,79.263,1.56021712]
[1771833813730,1.61545327,79.297,79.262,12.61638616]
[1771833813731,1.61545327,79.297,79.262,14.17660328]
[1771833813934,1.61545327,79.297,79.263,1.56021712]
[1771833814622,13.0897587,79.29,79.264,12.61606782]
[1771833814823,1.61545327,79.295,79.265,1.56021712]
[1771833816140,17.88011682,79.319,79.265,1.56021712]
[1771833816141,1.61545327,79.317,79.271,1.56021712]
[1771833816339,1.61545327,79.309,79.271,1.56021712]
[1771833816735,1.61545327,79.309,79.272,12.61479463]
[1771833816920,31.51690772,79.323,79.272,12.61479463]
[1771833816921,1.61545327,79.299,79.272,12.61479463]
[1771833817940,1.61545327,79.299,79.264,31.54016955]
[1771833818140,1.61545327,79.299,79.26,13.0897587]
[1771833818141,1.61545327,79.299,79.266,14.17582968]
[1771833818648,1.61545327,79.299,79.267,1.56021712]
[1771833818846,1.61545327,79.298,79.268,12.61543119]
[1771833820341,14.70521197,79.29,79.261,14.17660338]
[1771833820529,14.70521197,79.29,79.262,1.56021712]
[1771833820926,14.70521197,79.29,79.263,12.61622699]
[1771833821132,14.70521197,79.29,79.263,14.17644411]
[1771833821830,1.61545327,79.279,79.24,1.56021712]
[1771833823146,13.0897587,79.28,79.241,12.61972968]
[1771833823147,1.61545327,79.259,79.241,12.61972968]
[1771833823543,1.61545327,79.266,79.241,12.61972968]
[1771833824344,1.61545327,79.259,79.232,1.56021712]
[1771833824550,1.61545327,79.259,79.232,14.18135536]
[1771833824939,12.61702288,79.258,79.232,14.18135536]
[1771833825150,1.61545327,79.257,79.232,1.56021712]
[1771833825453,1.61545327,79.257,79.228,12.62174418]
[1771833825661,1.61545327,79.249,79.22,0.2]
[1771833826257,1.61545327,79.239,79.22,0.2]
[1771833826440,1.61545327,79.239,79.21,0.2]
[1771833826646,13.0897587,79.24,79.202,1.65909293]
[1771833827244,13.0897587,79.23,79.202,1.65909293]
[1771833827439,13.0897587,79.23,79.203,14.2848773]
[1771833827642,13.0897587,79.23,79.204,1.65909293]
[1771833827838,13.0897587,79.24,79.204,1.65909293]
[1771833828155,25.70978338,79.24,79.204,1.65909293]
[1771833828341,12.62002468,79.24,79.204,1.65909293]
[1771833828540,31.54245638,79.259,79.204,1.65909293]
[1771833828858,12.61622699,79.263,79.211,1.65909293]
[1771833829654,44.15345216,79.269,79.212,44.18522445]
[1771833829856,44.15345216,79.269,79.221,1.65909293]
[1771833831157,44.15345216,79.269,79.2,0.2]
[1771833831158,13.0897587,79.26,79.2,0.2]
[1771833831363,13.0897587,79.25,79.201,12.6261032]
[1771833831653,12.6168637,79.259,79.211,1.65909293]
[1771833831837,44.15902295,79.259,79.211,1.65909293]
[1771833832038,13.0897587,79.25,79.211,1.65909293]
[1771833832758,13.0897587,79.24,79.211,1.65909293]
[1771833833467,13.0897587,79.24,79.2,0.2]
[1771833834154,12.6200482,79.239,79.2,0.2]
[1771833834358,13.0897587,79.23,79.2,0.2]
[1771833835345,44.17016872,79.239,79.19,0.2]
[1771833835346,1.49271539,79.219,79.19,0.2]
[1771833836065,1.49271539,79.217,79.19,0.2]
[1771833836649,1.49271539,79.217,79.191,12.62769759]
[1771833837065,1.49271539,79.217,79.19,0.2]
[1771833837447,1.49271539,79.228,79.192,1.65038433]
[1771833838056,1.49271539,79.233,79.193,12.62737868]
[1771833838243,1.49271539,79.219,79.19,0.2]
[1771833839860,1.49271539,79.219,79.19,1.85038433]
[1771833840264,3.69383402,79.247,79.19,1.85038433]
[1771833840265,1.49271539,79.225,79.19,1.85038433]
[1771833840460,14.11508405,79.225,79.192,1.65038433]
[1771833840662,1.49271539,79.224,79.192,1.65038433]
[1771833841156,1.49271539,79.232,79.192,1.65038433]
[1771833842160,13.0897587,79.25,79.19,13.2897587]
[1771833842161,1.49271539,79.242,79.193,44.19582538]
[1771833842472,1.49271539,79.258,79.211,1.65038433]
[1771833844293,1.49271539,79.256,79.213,1.65038433]
[1771833845770,1.49271539,79.239,79.208,12.62490045]
[1771833846655,1.49271539,79.237,79.208,12.62490045]
[1771833847276,1.49271539,79.237,79.209,1.65038433]
[1771833849378,12.62012132,79.239,79.211,1.65038433]
[1771833849682,1.49271539,79.238,79.211,1.65038433]
[1771833850780,12.61949535,79.243,79.211,1.65038433]
[1771833851287,1.49271539,79.242,79.211,1.65038433]
[1771833851666,1.49174009,79.24,79.211,1.65038433]
[1771833853358,1.48716771,79.238,79.211,1.65038433]
[1771833853980,13.0897587,79.23,79.19,1.85038433]
[1771833854169,1.48264785,79.229,79.192,1.65038433]
[1771833855967,1.47376329,79.227,79.192,1.65038433]
[1771833856763,1.47376329,79.227,79.194,1.65038433]
[1771833856968,1.47376329,79.227,79.19,0.2]
[1771833857370,1.47376329,79.227,79.19,1.85038433]
[1771833857587,1.44908984,79.219,79.19,0.2]
[1771833857891,44.1763013,79.228,79.135,1.46414604]
[1771833857892,0.61144679,79.199,79.135,1.46414604]
[1771833858095,1.66414604,79.179,79.151,1.55784561]
[1771833858293,13.14049761,79.18,79.151,1.55784561]
[1771833858593,13.14049761,79.18,79.152,1.55784561]
[1771833858775,13.14049761,79.16,79.15,7.65789499]
[1771833859320,13.14049761,79.16,79.142,1.55784561]
[1771833860193,12.63280233,79.159,79.142,1.55784561]
[1771833860887,13.14049761,79.15,79.13,1.75784561]
[1771833861781,13.14049761,79.15,79.13,0.2]
[1771833862189,3.69383402,79.188,79.131,1.55784561]
[1771833862406,50.49768439,79.212,79.141,1.55784561]
[1771833862407,13.14049761,79.18,79.141,1.55784561]
[1771833862590,12.62785705,79.19,79.141,1.55784561]
[1771833862899,12.62785705,79.19,79.151,1.55784561]
[1771833863075,12.62720251,79.195,79.151,1.55784561]
[1771833863575,13.14049761,79.19,79.151,1.55784561]
[1771833864478,13.14049761,79.19,79.153,1.55784561]
[1771833866196,13.14049761,79.18,79.154,12.63360032]
[1771833866492,13.14049761,79.18,79.155,1.55784561]
[1771833866895,44.18466665,79.213,79.16,13.14049761]
[1771833867074,13.14049761,79.21,79.161,1.55784561]
[1771833867395,13.14049761,79.2,79.161,1.55784561]
[1771833868091,13.14049761,79.2,79.163,1.55784561]
[1771833868297,44.17351355,79.233,79.181,1.55784561]
[1771833868479,13.14049761,79.21,79.181,1.55784561]
[1771833869192,13.14346498,79.21,79.181,1.55784561]
[1771833870098,12.62482798,79.209,79.181,1.55784561]
[1771833870686,12.62482798,79.209,79.183,1.55784561]
[1771833872775,12.62482798,79.209,79.141,101.08517222]
[1771833872776,44.17351355,79.233,79.185,1.55784561]
[1771833873581,13.14346498,79.23,79.185,1.55784561]
[1771833874283,13.14346498,79.23,79.156,47.63988106]
[1771833874284,3.69383402,79.223,79.175,1.55784561]
[1771833874482,13.14346498,79.2,79.175,1.55784561]
[1771833874897,44.1774165,79.226,79.175,1.55784561]
[1771833874898,13.14346498,79.21,79.175,1.55784561]
[1771833875398,44.1774165,79.226,79.175,1.55784561]
[1771833875602,13.14346498,79.2,79.175,1.55784561]
[1771833876287,13.14346498,79.2,79.177,1.55784561]
[1771833877210,12.62642205,79.199,79.177,1.55784561]
[1771833877588,13.14346498,79.19,79.177,1.55784561]
[1771833879684,12.62801651,79.189,79.177,1.55784561]
[1771833880200,12.62801651,79.189,79.169,1.55784561]
[1771833880381,12.62801651,79.189,79.153,31.58410679]
[1771833880382,13.14346498,79.18,79.15,1.55784561]
[1771833881787,13.14346498,79.18,79.152,1.55784561]
[1771833882297,12.62856668,79.186,79.152,1.55784561]
[1771833882495,13.14346498,79.18,79.152,1.55784561]
[1771833883215,3.69383402,79.214,79.152,1.55784561]
[1771833883216,12.62180037,79.228,79.152,1.55784561]
[1771833883392,13.14346498,79.23,79.155,1.55784561]
[1771833883705,12.62164106,79.229,79.16,1.55784561]
[1771833884087,13.14346498,79.22,79.16,1.55784561]
[1771833884311,12.62164106,79.229,79.16,1.55784561]
[1771833885705,12.62164106,79.229,79.161,157.90603956]
[1771833885897,12.62164106,79.229,79.162,1.55784561]
[1771833887111,12.62164106,79.229,79.167,1.55784561]
[1771833888215,12.62164106,79.229,79.171,3.69383402]
[1771833888510,12.62164106,79.229,79.173,1.55784561]
[1771833890810,13.14346498,79.24,79.178,1.55784561]
[1771833893312,12.6200482,79.239,79.183,1.55784561]
[1771833893516,12.61845575,79.249,79.188,1.55784561]
[1771833893815,13.14346498,79.24,79.188,1.55784561]
[1771833895514,12.61858475,79.249,79.193,1.55784561]
[1771833895918,31.54154462,79.261,79.189,107.33814038]
[1771833895919,12.61695497,79.259,79.198,1.55784561]
[1771833896098,12.61695497,79.259,79.203,1.55784561]
[1771833898624,12.61695497,79.259,79.202,3.69383402]
[1771833898625,13.14346498,79.25,79.208,1.55784561]
[1771833899904,13.14346498,79.26,79.208,1.55784561]
[1771833900324,12.61527204,79.269,79.208,1.55784561]
[1771833900827,13.14346498,79.26,79.213,1.55784561]
[1771833901025,13.14346498,79.24,79.209,44.18689794]
[1771833901324,13.14346498,79.24,79.211,1.55784561]
[1771833902608,13.14346498,79.24,79.212,12.62434984]
[1771833902806,13.14346498,79.23,79.21,47.63988106]
[1771833903018,13.14346498,79.23,79.211,12.62446954]
[1771833903222,13.14346498,79.23,79.211,60.2643506]
[1771833903402,13.14346498,79.24,79.211,60.2643506]
[1771833904106,13.14346498,79.23,79.191,1.55784561]
[1771833904308,13.14346498,79.22,79.186,12.62839001]
[1771833904622,13.14346498,79.21,79.186,12.62839001]
[1771833905019,12.62375127,79.216,79.187,1.55784561]
[1771833906207,13.14346498,79.21,79.187,1.55784561]
[1771833907220,13.14346498,79.21,79.18,1.55784561]
[1771833907709,12.62375127,79.216,79.18,1.55784561]
[1771833908905,13.14346498,79.21,79.18,1.55784561]
[1771833909425,12.62482798,79.209,79.182,1.55784561]
[1771833911723,13.14346498,79.2,79.181,12.62929238]